bitfinex/quotes_ETHUSD_20260207
["timestamp","ask_amount","ask_price","bid_price","bid_amount"]
[1770434854189,1.28372442,2082.8,2081.6,1.2490322]
[1770434854416,0.04623434,2082.5,2081.6,0.72985148]
[1770434854598,0.04623434,2082.5,2081.5,0.04803995]
[1770434854920,1.20053784,2082.4,2081.5,1.24909251]
[1770434855114,1.20053784,2082.4,2081.5,0.04803995]
[1770434855389,2.43802792,2082.4,2081.4,0.0011]
[1770434855721,0.04623434,2082.2,2081.4,0.0011]
[1770434856016,1.2935688,2082.3,2081.4,0.0011]
[1770434856217,1.20053784,2082.4,2081.6,1.2452699]
[1770434856518,1.20053784,2082.4,2081.8,0.0011]
[1770434856919,4.80154015,2082.7,2081.8,0.0011]
[1770434857399,4.80154015,2082.7,2081.8,1.2463699]
[1770434857601,4.80154015,2082.7,2081.8,0.0011]
[1770434857796,4.80154015,2082.7,2081.8,0.60169042]
[1770434858120,4.80154015,2082.7,2081.8,0.0011]
[1770434858815,1.20036491,2082.8,2081.8,0.0011]
[1770434861098,1.20036491,2082.8,2081.4,0.0011]
[1770434861099,1.33980314,2082.3,2081.4,0.0011]
[1770434861305,0.04623434,2082.0,2081.4,0.0011]
[1770434862534,1.33980314,2082.0,2081.4,0.0011]
[1770434863434,1.20082616,2081.9,2081.4,0.0011]
[1770434863622,2.49439496,2081.9,2081.4,0.0011]
[1770434864200,2.49439496,2081.9,2081.1,0.0011]
[1770434865409,1.2935688,2081.8,2081.1,0.0011]
[1770434866029,0.04623434,2081.7,2081.1,0.0011]
[1770434867506,0.04623434,2081.4,2080.3,1.20174663]
[1770434867819,2.49456803,2081.6,2080.6,1.2452699]
[1770434867820,1.20099923,2081.6,2080.6,1.2452699]
[1770434868717,1.20099923,2081.6,2081.3,0.0011]
[1770434868912,1.20099923,2081.6,2080.6,1.2452699]
[1770434869115,1.20099923,2081.6,2081.0,0.0011]
[1770434871037,0.04804242,2081.5,2081.0,0.0011]
[1770434871633,1.20111463,2081.4,2081.0,0.0011]
[1770434872039,1.20111463,2081.4,2080.5,2.44687579]
[1770434872040,1.20111463,2081.4,2080.5,2.44689819]
[1770434872243,1.20111463,2081.4,2080.6,1.2452699]
[1770434874045,0.04804242,2081.4,2080.7,1.20151871]
[1770434874343,0.04804242,2081.4,2080.7,1.92681912]
[1770434875042,0.04804242,2081.5,2080.7,1.92681912]
[1770434875623,0.04804242,2081.5,2080.7,3.17208902]
[1770434876148,1.20111463,2081.4,2080.7,3.17208902]
[1770434877250,0.04804242,2081.5,2080.8,1.2452699]
[1770434877418,1.24875324,2082.1,2081.0,1.2452699]
[1770434878349,1.24875324,2082.1,2081.1,1.24930065]
[1770434879322,1.33980314,2082.0,2081.0,1.20131593]
[1770434879542,1.33980314,2082.0,2081.0,1.83371847]
[1770434879543,0.30689806,2081.9,2081.0,1.83371847]
[1770434880243,1.20088385,2081.8,2081.0,1.83371847]
[1770434880429,0.04804242,2081.7,2081.0,1.83371847]
[1770434881351,0.04804242,2081.7,2081.0,0.63240254]
[1770434881521,0.04804242,2081.7,2080.9,0.3172089]
[1770434881846,0.001,2081.5,2081.2,0.0011]
[1770434883647,0.001,2081.5,2081.2,1.2463699]
[1770434883945,1.20092416,2081.8,2081.2,0.0011]
[1770434884146,1.24896658,2081.8,2081.2,0.0011]
[1770434884357,1.20092416,2081.8,2081.2,0.0011]
[1770434885453,1.20092416,2081.8,2081.2,1.2463699]
[1770434886832,4.80262909,2082.2,2081.3,1.20117234]
[1770434887048,4.85067151,2082.2,2081.2,2.49560153]
[1770434887433,4.85067151,2082.2,2081.2,0.0011]
[1770434887434,1.21422735,2082.1,2081.2,0.0011]
[1770434887646,1.26226977,2082.0,2081.2,0.0011]
[1770434889055,2.42215113,2081.9,2081.2,0.0011]
[1770434889347,0.04804242,2081.8,2081.2,0.0011]
[1770434890958,1.20094153,2081.7,2081.2,0.0011]
[1770434891262,0.04804242,2081.6,2081.2,0.0011]
[1770434892746,1.24897116,2081.8,2081.2,0.0011]
[1770434894433,1.24897116,2081.8,2081.2,1.24159561]
[1770434895237,1.24897116,2081.8,2081.2,1.96641964]
[1770434895454,1.24897116,2081.8,2081.4,0.0011]
[1770434895764,0.001,2081.6,2081.4,0.0011]
[1770434900763,0.001,2081.6,2081.2,0.0011]
[1770434903566,0.001,2081.6,2081.2,1.24159561]
[1770434904252,0.001,2081.6,2081.2,1.48599523]
[1770434905475,0.04904242,2081.6,2081.1,0.0011]
[1770434905770,1.27036739,2081.6,2081.1,0.0011]
[1770434905988,0.04904242,2081.6,2081.1,0.0011]
[1770434906192,1.20105693,2081.5,2081.1,0.0011]
[1770434907069,1.20105693,2081.5,2080.7,1.24049561]
[1770434907070,0.04804242,2081.4,2080.7,1.24049561]
[1770434907243,0.04804242,2081.4,2080.8,0.0011]
[1770434907954,1.26936739,2081.4,2080.8,0.0011]
[1770434908153,1.20117234,2081.3,2080.8,0.0011]
[1770434908960,1.20117234,2081.3,2081.0,0.0011]
[1770434909157,1.20117234,2081.3,2080.8,0.0011]
[1770434910544,4.85373179,2081.4,2080.8,1.24159561]
[1770434910545,1.20215611,2081.4,2080.8,1.24159561]
[1770434911877,1.20215611,2081.4,2080.8,1.24049561]
[1770434912744,0.001,2081.4,2080.9,0.0011]
[1770434912940,0.04904242,2081.4,2080.7,1.20258523]
[1770434913158,0.04904242,2081.4,2080.7,0.0011]
[1770434913763,0.04904242,2081.4,2080.9,1.24049561]
[1770434913764,0.001,2081.4,2080.9,1.24049561]
[1770434915648,0.001,2081.4,2080.9,2.44189151]
[1770434916972,0.001,2081.4,2080.9,1.24049561]
[1770434917175,0.001,2081.4,2080.8,1.20141473]
[1770434917480,0.001,2081.4,2080.8,1.92634646]
[1770434917678,0.001,2081.4,2080.9,0.0011]
[1770434918252,0.001,2081.4,2080.9,0.04915612]
[1770434918469,0.001,2081.4,2080.9,0.0011]
[1770434920364,0.001,2081.4,2081.1,0.0011]
[1770434920670,0.001,2081.2,2081.1,0.0011]
[1770434921746,0.001,2081.2,2080.9,0.0011]
[1770434921967,0.001,2081.2,2080.2,1.20288104]
[1770434921968,1.3088215,2081.2,2080.2,1.20288104]
[1770434922169,0.001,2081.2,2080.5,1.19289789]
[1770434922481,0.001,2081.2,2080.5,2.39452989]
[1770434922688,0.001,2081.2,2080.6,0.0011]
[1770434923156,0.001,2081.2,2080.7,1.19289789]
[1770434923573,0.001,2081.2,2080.8,0.0011]
[1770434924576,0.001,2081.2,2080.8,1.20256097]
[1770434924877,0.001,2081.2,2080.8,0.0011]
[1770434926962,0.001,2081.2,2080.8,1.19399789]
[1770434927484,0.001,2081.2,2080.8,1.91898135]
[1770434927785,0.001,2081.4,2081.0,1.19289789]
[1770434927950,0.001,2081.4,2081.0,1.24094939]
[1770434929093,0.001,2081.4,2081.1,1.20128778]
[1770434929261,0.001,2081.4,2081.1,2.39418567]
[1770434929473,0.001,2081.4,2081.2,1.19289789]
[1770434929678,0.001,2081.4,2081.0,0.0480515]
[1770434929916,0.001,2081.4,2080.8,1.2014606]
[1770434930063,0.001,2081.4,2080.6,1.19289789]
[1770434930807,0.001,2081.4,2080.4,2.3945437]
[1770434930970,0.001,2081.4,2080.4,3.11960592]
[1770434931587,2.50993613,2081.4,2080.4,1.20168452]
[1770434931766,0.04804242,2081.3,2080.4,2.39458241]
[1770434932163,1.35586392,2081.3,2080.3,1.24977446]
[1770434932490,1.35586392,2081.3,2080.4,1.20168638]
[1770434933504,0.001,2081.4,2081.1,0.0011]
[1770434933666,0.001,2081.4,2081.1,1.19399789]
[1770434933865,0.001,2081.4,2081.1,1.43834338]
[1770434934075,0.001,2081.4,2081.1,1.19399789]
[1770434935271,0.001,2081.4,2081.1,0.0011]
[1770434935472,0.001,2081.4,2081.1,2.39526965]
[1770434936691,0.001,2081.4,2081.1,0.0011]
[1770434937687,0.001,2081.4,2080.9,0.0011]
[1770434938495,0.001,2081.4,2080.9,1.19399789]
[1770434939798,0.001,2081.4,2081.0,2.39424339]
[1770434940298,0.001,2081.4,2081.0,3.11433747]
[1770434941269,0.001,2081.4,2081.1,1.19289789]
[1770434941892,0.001,2081.4,2081.2,1.20123005]
[1770434942277,0.001,2081.6,2081.2,1.20123005]
[1770434943686,0.001,2081.6,2081.3,1.19289789]
[1770434943889,0.001,2081.6,2081.4,1.20111463]
[1770434944088,0.001,2081.6,2081.4,1.92097679]
[1770434944381,0.001,2081.6,2081.4,0.71986216]
[1770434946601,0.001,2081.6,2081.4,1.92095017]
[1770434946913,0.001,2081.6,2081.4,3.22185318]
[1770434947477,4.80248625,2082.3,2081.4,3.22185318]
[1770434947478,1.26967,2082.7,2081.5,1.30090301]
[1770434947677,0.0009,2082.6,2081.7,1.30090301]
[1770434947892,1.20114965,2082.9,2081.8,1.20088385]
[1770434948076,1.27944389,2082.8,2081.8,1.20088385]
[1770434948298,0.25268279,2082.7,2081.9,0.60044193]
[1770434948509,0.04804242,2082.6,2081.9,0.60044193]
[1770434948705,0.04894242,2082.6,2081.9,0.60044193]
[1770434948891,0.0009,2082.6,2081.9,0.60044193]
[1770434949418,0.04713434,2082.6,2081.6,0.32218532]
[1770434949719,1.32657823,2082.6,2081.3,1.20223886]
[1770434950024,1.27763581,2082.3,2081.3,1.20223886]
[1770434950174,2.48009704,2082.2,2081.3,0.0011]
[1770434950379,0.0009,2082.1,2081.3,0.0011]
[1770434951001,1.23230147,2082.1,2081.3,0.0011]
[1770434951209,0.04804242,2082.0,2081.3,0.0011]
[1770434951592,0.0009,2081.9,2081.3,0.0011]
[1770434952617,1.20172616,2081.9,2081.3,0.0011]
[1770434952803,0.04804242,2081.8,2081.3,0.0011]
[1770434954086,0.04804242,2081.8,2081.0,0.0011]
[1770434954287,0.0009,2081.7,2081.0,0.0011]
[1770434954707,0.0009,2081.6,2081.0,0.0011]
[1770434955917,0.0009,2081.6,2080.9,0.0011]
[1770434955918,1.27763581,2081.4,2080.3,1.20170664]
[1770434956113,1.23140147,2081.4,2080.3,1.20173737]
[1770434956419,0.04623434,2081.3,2080.3,1.20173737]
[1770434956893,1.20123005,2081.2,2080.2,2.49333227]
[1770434957098,1.20123005,2081.2,2080.2,3.22352085]
[1770434957802,1.20123005,2081.2,2080.2,2.49334454]
[1770434958314,1.23140147,2081.1,2080.2,0.0011]
[1770434958745,1.23140147,2080.7,2080.2,0.0011]
[1770434958900,2.43297793,2080.6,2080.2,0.0011]
[1770434959094,2.43297793,2080.6,2079.9,0.0011]
[1770434959296,1.23140147,2080.5,2079.9,0.0011]
[1770434959594,1.20157646,2080.6,2079.9,0.0011]
[1770434960120,1.23140147,2080.5,2079.4,0.04808847]
[1770434960289,1.27763581,2080.5,2079.3,1.20231018]
[1770434960494,1.27763581,2080.5,2079.2,2.5408862]
[1770434960694,1.4793227,2080.4,2079.3,1.93737072]
[1770434960906,1.20174974,2080.3,2079.3,0.73505729]
[1770434961205,2.43315121,2080.3,2079.3,1.93737996]
[1770434961403,2.43315121,2080.3,2079.3,0.73505729]
[1770434961404,0.04623434,2080.2,2079.3,0.73505729]
[1770434961605,2.43315121,2080.3,2079.3,1.20231518]
[1770434962602,2.43315121,2080.3,2079.3,1.20232663]
[1770434962920,1.20174974,2080.3,2079.3,2.49276608]
[1770434963421,0.04623434,2081.1,2079.3,2.49276608]
[1770434963422,1.20146097,2080.8,2079.6,1.29043945]
[1770434963597,1.20146097,2080.8,2079.8,1.29043945]
[1770434963795,1.20146097,2080.8,2079.9,1.33851868]
[1770434964242,4.80495024,2081.2,2079.9,1.33851868]
[1770434964419,0.04804242,2081.1,2079.9,1.33851868]
[1770434965306,0.04804242,2081.1,2080.1,1.29043945]
[1770434965307,1.2013455,2081.0,2080.1,1.29043945]
[1770434965624,1.2013455,2081.0,2080.3,1.29043945]
[1770434966412,4.8532969,2081.1,2080.3,1.29043945]
[1770434966413,1.24937173,2081.1,2080.3,1.29043945]
[1770434968023,4.80548279,2081.4,2080.5,1.29043945]
[1770434968024,1.20215961,2081.4,2080.5,1.29043945]
[1770434968227,1.20215961,2081.4,2080.6,0.25401898]
[1770434968435,1.25020203,2081.4,2080.6,0.25401898]
[1770434969139,1.20215961,2081.4,2080.6,0.25401898]
[1770434969346,1.20215961,2081.4,2080.6,1.54445843]
[1770434969501,1.25020203,2081.4,2080.6,1.54445843]
[1770434970339,1.23140147,2081.3,2080.3,1.20173324]
[1770434970496,0.04804242,2081.2,2080.4,1.20168396]
[1770434970933,0.001,2080.9,2080.6,1.20156988]
[1770434972404,0.001,2080.9,2080.5,4.80641526]
[1770434972600,0.001,2080.9,2080.6,0.73465566]
[1770434972806,0.001,2080.9,2080.4,1.20168107]
[1770434973303,0.001,2080.9,2080.1,1.33960711]
[1770434973531,0.001,2080.9,2080.2,1.20178794]
[1770434973705,0.001,2080.9,2080.1,1.33960711]
[1770434973910,0.001,2080.9,2080.1,2.49337874]
[1770434974112,0.001,2080.9,2080.1,1.93794085]
[1770434974317,0.001,2080.9,2080.1,0.0011]
[1770434974522,1.20146097,2080.8,2080.1,0.0011]
[1770434974720,0.04804242,2080.7,2080.1,0.0011]
[1770434977814,1.20157646,2080.6,2080.1,0.0011]
[1770434980338,1.20243266,2080.9,2080.1,1.36391144]
[1770434980530,1.25047508,2080.9,2080.1,1.31585073]
[1770434982524,1.25047508,2080.9,2080.2,1.20180751]
[1770434983637,0.001,2080.7,2080.2,1.20180751]
[1770434984046,0.04904242,2080.7,2080.1,0.0011]
[1770434984225,0.29860364,2080.7,2080.1,0.0011]
[1770434984748,1.20157646,2080.6,2080.1,0.0011]
[1770434985127,0.04804242,2080.5,2080.1,0.0011]
[1770434987648,1.2497103,2080.5,2080.1,0.0011]
[1770434993855,1.2497103,2080.5,2079.5,1.31475073]
[1770434994447,1.2497103,2080.5,2079.7,1.31475073]
[1770434994836,1.20166788,2080.5,2079.7,1.31475073]
[1770434996359,1.20166788,2080.5,2080.1,0.0011]
[1770434996560,0.001,2080.3,2080.1,0.0011]
[1770435000354,0.001,2080.3,2079.1,1.20244336]
[1770435000355,1.24413712,2080.2,2079.1,1.20244336]
[1770435000553,1.29217954,2080.2,2079.2,1.31475073]
[1770435000859,2.39976807,2080.1,2079.1,3.24995606]
[1770435001036,2.39976807,2080.1,2079.2,1.20238217]
[1770435001232,0.04623434,2079.9,2079.1,1.31475073]
[1770435001443,1.24413712,2079.9,2079.0,0.0011]
[1770435001644,1.24413712,2079.9,2079.0,1.20359353]
[1770435001961,0.04623434,2079.6,2079.0,0.0011]
[1770435002155,1.24413712,2079.6,2079.0,0.0011]
[1770435002862,1.20221207,2079.5,2079.0,0.0011]
[1770435003034,2.44634919,2079.5,2079.0,0.0011]
[1770435003237,2.40011485,2079.5,2079.0,0.0011]
[1770435005241,0.04623434,2079.3,2078.6,0.0011]
[1770435005574,0.04623434,2079.0,2078.6,0.0011]
[1770435005746,0.2335703,2079.2,2078.6,0.0011]
[1770435005940,0.04623434,2079.0,2078.6,0.0011]
[1770435006135,0.04623434,2078.9,2078.6,0.0011]
[1770435007282,0.2335703,2078.7,2077.8,1.30603435]
[1770435007444,0.04623434,2078.8,2078.0,1.30493435]
[1770435007639,0.04623434,2078.8,2077.8,1.20426003]
[1770435007946,0.2335703,2078.7,2077.8,2.50920578]
[1770435008345,0.2335703,2078.7,2077.8,2.50922267]
[1770435008666,0.2335703,2078.7,2078.1,0.0011]
[1770435008667,0.04623434,2078.5,2078.1,0.0011]
[1770435008852,1.27961837,2078.5,2078.1,0.0011]
[1770435009050,1.27961837,2078.5,2077.8,0.0011]
[1770435009247,0.04623434,2078.2,2077.5,0.0011]
[1770435009451,2.43623237,2078.4,2077.5,1.20446437]
[1770435009652,2.48246671,2078.4,2077.5,0.0011]
[1770435009851,1.18338403,2078.3,2077.5,1.20446821]
[1770435010061,1.20261689,2078.8,2077.6,1.30476563]
[1770435010461,0.04623434,2078.6,2077.6,1.30476563]
[1770435010764,1.20261689,2078.8,2077.6,1.30476563]
[1770435010966,1.20259447,2078.9,2077.8,1.30476563]
[1770435011341,1.20259447,2078.9,2078.0,1.30476563]
[1770435011955,1.20241417,2079.2,2078.0,1.30476563]
[1770435012156,0.04804242,2079.1,2078.0,1.30476563]
[1770435012447,1.28142645,2079.1,2078.0,1.30476563]
[1770435012654,1.27961837,2078.6,2077.7,1.20322289]
[1770435012857,1.27961837,2078.6,2077.6,2.50803885]
[1770435013052,1.27961837,2078.6,2077.6,2.50807277]
[1770435013252,0.04623434,2078.3,2077.6,1.30476563]
[1770435013468,0.04623434,2078.3,2077.6,1.20327666]
[1770435013646,1.20279047,2078.5,2077.6,1.8050795]
[1770435013847,0.04623434,2078.3,2077.6,1.8050795]
[1770435014767,0.04623434,2078.3,2077.6,1.80510951]
[1770435014974,1.20279047,2078.5,2077.6,1.80510951]
[1770435015279,0.2335703,2078.1,2077.5,0.0011]
[1770435015461,0.04623434,2078.1,2077.5,0.0011]
[1770435016550,1.20279047,2078.5,2077.6,2.50806481]
[1770435016747,0.04804242,2078.4,2077.6,2.50806481]
[1770435017048,0.04804242,2078.4,2077.6,3.24030587]
[1770435017591,0.04623434,2078.9,2077.6,3.24030587]
[1770435017592,0.1024,2079.1,2077.9,1.30476563]
[1770435017882,0.04623434,2079.5,2077.9,1.30476563]
[1770435018077,0.04623434,2079.6,2077.9,1.30476563]
[1770435018244,1.24834127,2079.7,2078.1,1.30476563]
[1770435019058,0.04623434,2079.4,2078.1,1.30476563]
[1770435019270,0.04623434,2079.4,2078.1,1.25476563]
[1770435019469,0.04623434,2079.4,2078.2,1.2029641]
[1770435019675,1.24852928,2079.4,2078.3,1.30476563]
[1770435019873,1.24852928,2079.4,2078.4,1.5555386]
[1770435020459,1.24852928,2079.4,2078.4,1.5566386]
[1770435020781,0.001,2079.3,2078.4,1.5566386]
[1770435021474,0.001,2079.3,2078.5,1.20279047]
[1770435022459,0.001,2079.3,2078.4,2.75944631]
[1770435022661,0.04623434,2079.1,2078.4,2.75944631]
[1770435022985,0.04623434,2079.1,2078.4,1.45468068]
[1770435023290,0.04623434,2079.1,2078.4,0.25187297]
[1770435023480,0.04623434,2079.1,2078.4,0.0011]
[1770435023867,1.23438403,2079.3,2078.4,0.0011]
[1770435024181,1.20332771,2079.3,2078.4,1.30586563]
[1770435024377,0.001,2079.3,2078.4,1.30586563]
[1770435024555,1.20332785,2079.3,2078.4,1.30586563]
[1770435024757,1.20332785,2079.3,2078.4,1.91762803]
[1770435026672,1.20332785,2079.3,2078.5,1.20279047]
[1770435027196,1.20332785,2079.3,2078.4,0.0011]
[1770435027197,0.04623434,2079.1,2078.4,0.0011]
[1770435027566,1.23338403,2079.0,2078.4,0.0011]
[1770435027782,0.04623434,2078.8,2078.4,0.0011]
[1770435028477,1.27961837,2078.8,2078.4,0.0011]
[1770435028788,1.20267474,2078.7,2078.4,0.0011]
[1770435028984,1.20267474,2078.7,2078.1,0.0011]
[1770435029189,0.04623434,2078.5,2078.1,0.0011]
[1770435030703,1.20284834,2078.4,2078.1,0.0011]
[1770435031886,1.20255904,2078.9,2078.1,0.0011]
[1770435032263,0.04623434,2078.8,2078.1,0.0011]
[1770435032464,0.04623434,2078.5,2078.3,0.0011]
[1770435032690,0.04623434,2078.5,2078.1,0.0011]
[1770435032863,1.20284834,2078.4,2078.1,0.0011]
[1770435033187,0.04623434,2078.2,2077.5,0.0011]
[1770435033765,1.27961837,2078.2,2077.5,0.0011]
[1770435034257,1.23338403,2078.2,2077.5,1.20444849]
[1770435034460,1.20284834,2078.4,2077.5,1.20444849]
[1770435034461,1.20284834,2078.4,2077.6,1.30476563]
[1770435035305,1.20284834,2078.4,2077.6,2.5080232]
[1770435035479,1.20284834,2078.4,2077.6,3.24027183]
[1770435035896,1.20270798,2078.7,2077.7,1.3015721]
[1770435036098,1.24894232,2078.7,2077.7,1.3015721]
[1770435036989,1.20270798,2078.7,2077.7,1.3015721]
[1770435037380,0.04623434,2078.7,2077.8,2.50476778]
[1770435037697,0.04623434,2078.7,2077.9,0.73175505]
[1770435038263,1.31592864,2078.7,2077.7,1.20320876]
[1770435039198,0.2335703,2078.9,2077.8,1.3015721]
[1770435039394,1.24885123,2078.8,2078.0,1.3015721]
[1770435040066,1.24885123,2078.8,2077.9,1.20313778]
[1770435040467,1.24885123,2078.8,2077.9,2.50470988]
[1770435040684,0.04623434,2078.5,2077.7,1.20321168]
[1770435040891,0.04623434,2078.5,2077.8,1.20318167]
[1770435041284,0.04623434,2078.5,2077.6,2.50487705]
[1770435041484,1.20284834,2078.4,2077.6,2.50487705]
[1770435041790,1.20267474,2078.7,2077.7,1.3015721]
[1770435042098,0.04623434,2078.5,2077.8,0.25048771]
[1770435043601,1.20284834,2078.4,2077.8,1.45365733]
[1770435044275,1.20284834,2078.4,2077.5,0.0011]
[1770435044276,0.04623434,2078.1,2077.5,0.0011]
[1770435044997,0.04623434,2077.8,2077.3,0.0011]
[1770435045402,0.04623434,2078.0,2077.3,0.0011]
[1770435045601,1.20313778,2077.9,2077.3,0.0011]
[1770435046271,1.2031221,2078.0,2077.3,0.0011]
[1770435047071,1.20299821,2078.2,2077.3,1.3026721]
[1770435047606,4.81284949,2078.3,2077.4,1.20342736]
[1770435047767,4.81284949,2078.3,2077.4,2.50499946]
[1770435047972,1.20390622,2078.3,2077.5,0.73198089]
[1770435048171,1.20390622,2078.3,2077.5,2.03355299]
[1770435048789,0.04623434,2078.2,2077.5,2.03355299]
[1770435048980,0.001,2078.3,2077.6,1.3015721]
[1770435050204,0.001,2078.3,2077.7,1.20325359]
[1770435050912,1.31592864,2078.1,2077.3,0.0011]
[1770435051199,0.04623434,2077.8,2077.3,0.0011]
[1770435051906,0.04623434,2077.5,2077.3,0.0011]
[1770435052084,1.20342736,2077.4,2076.8,1.20376661]
[1770435052482,1.20342736,2077.4,2076.7,1.20492045]
[1770435052984,1.20342736,2077.4,2076.7,0.0011]
[1770435053187,1.20342736,2077.4,2076.7,1.20492137]
[1770435053708,1.20342736,2077.4,2076.7,0.0011]
[1770435055199,0.04623434,2076.9,2076.7,0.0011]
[1770435055388,0.04623434,2077.2,2076.4,0.001]
[1770435055587,1.31592864,2077.2,2076.4,0.001]
[1770435055783,0.04623434,2076.9,2076.4,0.001]
[1770435056407,1.20377503,2076.8,2076.4,0.001]
[1770435057605,1.20377503,2076.8,2076.2,0.001]
[1770435058372,0.04623434,2076.6,2076.2,0.001]
[1770435059673,1.20377503,2076.8,2076.2,0.001]
[1770435060418,1.20342736,2077.4,2076.4,1.3015721]
[1770435060620,1.20341503,2077.5,2076.5,1.5521358]
[1770435060783,0.04623434,2077.5,2076.5,1.5521358]
[1770435060978,0.04623434,2077.2,2076.5,0.2505637]
[1770435061194,0.04623434,2077.2,2076.3,1.20406492]
[1770435061393,1.24953444,2077.7,2076.4,1.3015721]
[1770435061592,1.2033001,2077.7,2076.4,1.3015721]
[1770435061816,0.04623434,2077.6,2076.4,1.3015721]
[1770435062424,0.04623434,2077.6,2076.5,1.20394895]
[1770435062425,1.20336943,2077.5,2076.5,1.20394895]
[1770435062622,1.20336943,2077.5,2076.6,0.73213169]
[1770435062913,1.2033527,2077.6,2076.6,2.03370379]
[1770435063104,1.24958704,2077.6,2076.6,2.03370379]
[1770435064519,1.24958704,2077.6,2076.7,1.203833]
[1770435066285,0.04623434,2077.3,2076.4,1.20398031]
[1770435066516,1.20354323,2077.2,2076.4,1.20398314]
[1770435067298,0.04623434,2077.0,2076.3,2.44038254]
[1770435067496,1.26349245,2077.6,2076.4,1.23634552]
[1770435067706,0.04623434,2077.3,2076.5,1.4803847]
[1770435068242,0.04623434,2077.3,2076.5,0.24403918]
[1770435068390,1.20354323,2077.2,2076.3,2.49210294]
[1770435069401,1.20354323,2077.2,2076.6,0.0011]
[1770435069402,0.04623434,2077.0,2076.6,0.0011]
[1770435069620,2.49069996,2077.2,2076.6,0.0011]
[1770435069819,0.04623434,2076.7,2076.2,0.001]
[1770435070199,0.04623434,2076.7,2076.4,0.0011]
[1770435070524,1.20389097,2076.6,2076.0,0.001]
[1770435071411,0.04623434,2076.4,2076.0,0.001]
[1770435072514,0.04623434,2076.1,2075.8,0.0011]
[1770435072715,1.20406492,2076.3,2075.5,0.0011]
[1770435072945,0.04623434,2076.1,2075.5,0.0011]
[1770435073814,1.20406492,2076.3,2075.5,1.28915671]
[1770435074031,1.20394895,2076.5,2075.6,1.53753019]
[1770435075434,1.25010912,2076.7,2075.8,1.28805671]
[1770435075595,1.20387478,2076.7,2075.8,1.28805671]
[1770435075803,1.20381137,2076.8,2075.8,1.28805671]
[1770435076216,1.20376244,2076.9,2075.8,1.28805671]
[1770435076416,1.20376244,2076.9,2076.0,1.28805671]
[1770435077430,1.20376244,2076.9,2076.1,1.20418091]
[1770435082116,1.20376244,2076.9,2076.3,0.0011]
[1770435082823,4.86063552,2077.3,2076.3,0.0011]
[1770435082824,0.001,2077.4,2076.3,1.28915671]
[1770435083023,1.20442788,2077.4,2076.3,1.28915671]
[1770435083324,1.20443323,2077.4,2076.3,1.28915671]
[1770435083526,0.001,2077.4,2076.3,1.28915671]
[1770435083830,1.20444109,2077.4,2076.3,1.28915671]
[1770435084335,0.04623434,2077.2,2076.3,1.28915671]
[1770435084535,1.20442808,2077.4,2076.3,1.28915671]
[1770435085035,1.20442808,2077.4,2076.5,1.28805671]
[1770435085403,0.04723434,2077.4,2076.5,1.28805671]
[1770435085715,0.001,2077.4,2076.5,1.28805671]
[1770435087155,0.001,2077.4,2076.7,1.28805671]
[1770435088905,0.001,2077.4,2076.8,1.20377503]
[1770435089108,0.001,2077.4,2076.9,0.73069319]
[1770435089345,0.001,2077.4,2077.0,1.28805671]
[1770435089524,0.001,2078.1,2077.0,1.28805671]
[1770435091113,0.001,2078.1,2077.2,1.28805671]
[1770435093052,0.001,2078.3,2077.4,1.28805671]
[1770435093829,1.20248922,2079.1,2077.8,1.28805671]
[1770435094032,0.04623434,2079.0,2077.8,1.28805671]
[1770435094245,0.001,2079.2,2077.8,1.28805671]
[1770435094419,0.001,2079.2,2078.0,1.28805671]
[1770435095131,0.001,2079.2,2078.2,1.28805671]
[1770435096858,0.001,2079.2,2078.0,4.81208796]
[1770435096859,1.34792257,2079.1,2078.0,1.20304102]
[1770435097039,1.20267474,2078.7,2077.7,1.20325359]
[1770435097238,1.24888864,2078.8,2077.8,0.72612716]
[1770435097438,1.24888864,2078.8,2077.6,6.05801798]
[1770435097439,0.04623434,2078.5,2077.6,1.20326968]
[1770435098032,0.04623434,2077.9,2076.6,11.27697697]
[1770435098234,0.04623434,2077.6,2077.0,1.20362646]
[1770435098542,0.04623434,2077.6,2076.9,4.81486698]
[1770435098543,1.34792257,2077.9,2076.6,1.24487568]
[1770435098850,1.34792257,2077.9,2077.0,1.20362388]
[1770435099163,1.34792257,2077.9,2076.7,1.203833]
[1770435099164,0.04623434,2077.6,2076.7,1.203833]
[1770435099340,1.20323546,2077.8,2076.7,1.203833]
[1770435099540,1.20323546,2077.8,2076.8,0.72642449]
[1770435099735,0.04623434,2077.6,2076.7,1.203833]
[1770435101050,0.04623434,2077.5,2076.7,1.203833]
[1770435101251,1.2496617,2077.4,2076.4,4.81602487]
[1770435102559,0.04623434,2077.1,2076.4,1.20400693]
[1770435102767,2.55134993,2077.4,2076.4,1.20400693]
[1770435103159,1.20365912,2077.0,2076.3,0.0011]
[1770435103695,1.20365912,2077.0,2076.3,1.20511944]
[1770435103843,1.20365912,2077.0,2076.3,0.0011]
[1770435104358,4.81409874,2077.3,2076.4,1.20400486]
[1770435104574,4.81409874,2077.3,2076.3,4.81715598]
[1770435104575,0.04623434,2077.1,2076.3,1.2051219]
[1770435104780,1.34792257,2077.1,2076.3,0.0011]
[1770435105285,1.20365912,2077.0,2076.3,0.0011]
[1770435105464,4.81275764,2077.9,2076.4,1.24487568]
[1770435105767,0.04623434,2077.8,2076.4,1.24487568]
[1770435107175,1.20325359,2077.7,2076.6,1.24597568]
[1770435107374,1.24945369,2077.8,2076.6,1.24597568]
[1770435108984,0.04623434,2077.4,2076.6,0.0011]
[1770435109360,1.24970615,2077.4,2076.6,0.0011]
[1770435112884,1.20307988,2078.0,2076.6,1.24597568]
[1770435113094,0.04623434,2077.8,2076.6,1.24597568]
[1770435113761,1.20307988,2078.0,2076.6,1.24597568]
[1770435113982,0.04623434,2077.9,2076.6,1.24597568]
[1770435114191,1.20319568,2077.8,2076.8,1.24487568]
[1770435114778,1.20319568,2077.8,2076.7,1.203833]
[1770435114993,1.20319568,2077.8,2076.8,1.24487568]
[1770435115666,1.20319568,2077.8,2076.7,1.203833]
[1770435116289,1.20319568,2077.8,2076.7,1.24487568]
[1770435116494,1.24940998,2077.9,2076.8,1.85100645]
[1770435117197,1.34792257,2078.2,2076.9,1.24487568]
[1770435117385,4.81223752,2078.1,2076.9,1.24487568]
[1770435117698,1.20284834,2078.4,2076.9,1.24487568]
[1770435118263,1.20284834,2078.4,2077.1,1.24487568]
[1770435120292,1.20284834,2078.4,2077.2,2.44841891]
[1770435120599,1.20284834,2078.4,2077.1,1.20356713]
[1770435120600,0.04623434,2077.9,2077.1,1.20356713]